fUST/lending_fUST_20250130
["ID","MTS","AMOUNT","RATE_DAILY","PERIOD"]
[350896092,1738181435907,-2401.92,0.00016438,2]
[350896093,1738181435916,-500.0,0.00016438,2]
[350896094,1738181435925,-391.75589458,0.00016438,2]
[350896095,1738181435935,-500.70490807,0.00016438,2]
[350896096,1738181435949,-500.0,0.00016438,2]
[350896097,1738181435959,-993.98,0.00016438,2]
[350896098,1738181435968,-1187.36,0.00016438,2]
[350896099,1738181435978,-500.0,0.00016438,2]
[350896100,1738181435987,-500.0,0.00016438,2]
[350896101,1738181435996,-500.0,0.00016438,2]
[350896102,1738181436006,-429.77640263,0.00016438,2]
[350896103,1738181436016,-1200.06,0.00016438,2]
[350896104,1738181436025,-258.27315078,0.00016438,2]
[350896105,1738181436034,-1103.23,0.00016438,2]
[350896106,1738181436043,-500.0,0.00016438,2]
[350896107,1738181436053,-500.0,0.00016438,2]
[350896108,1738181436062,-500.0,0.00016438,2]
[350896109,1738181436071,-500.0,0.00016438,2]
[350896110,1738181436081,-500.0,0.00016438,2]
[350896111,1738181436090,-500.0,0.00016438,2]
[350896112,1738181436100,-500.0,0.00016438,2]
[350896113,1738181436109,-670.56,0.00016438,2]
[350896114,1738181436118,-500.0,0.00016438,2]
[350896115,1738181436127,-500.0,0.00016438,2]
[350896116,1738181436137,-500.0,0.00016438,2]
[350896117,1738181436147,-248.80106219,0.00016438,2]
[350896118,1738181436156,-1166.32,0.00016438,2]
[350896119,1738181436166,-500.0,0.00016438,2]
[350896120,1738181436176,-500.0,0.00016438,2]
[350896121,1738181436188,-500.0,0.00016438,2]
[350896122,1738181436198,-500.0,0.00016438,2]
[350896123,1738181436208,-500.0,0.00016438,2]
[350896124,1738181436218,-500.0,0.00016438,2]
[350896125,1738181436227,-500.0,0.00016438,2]
[350896126,1738181436237,-500.0,0.00016438,2]
[350896127,1738181436246,-500.0,0.00016438,2]
[350896128,1738181436256,-500.0,0.00016438,2]
[350896129,1738181436265,-10083.66,0.00016438,2]
[350896130,1738181436275,-500.0,0.00016438,2]
[350896131,1738181436284,-500.0,0.00016438,2]
[350896132,1738181436294,-9243.73,0.00016438,2]
[350896133,1738181436303,-500.0,0.00016438,2]
[350896134,1738181436313,-500.0,0.00016438,2]
[350896135,1738181436322,-500.0,0.00016438,2]
[350896136,1738181436335,-1012.5,0.00016438,2]
[350896137,1738181436345,-500.0,0.00016438,2]
[350896138,1738181436354,-5675.59,0.00016438,2]
[350896139,1738181436364,-500.0,0.00016438,2]
[350896140,1738181436375,-559.91687658,0.00016473,2]
[350896141,1738181436385,-500.0,0.00016473,2]
[350896142,1738181436395,-500.0,0.00016473,2]
[350896143,1738181436405,-500.0,0.00016473,2]
[350896144,1738181436414,-500.0,0.00016473,2]
[350896145,1738181436425,-500.0,0.00016473,2]
[350896146,1738181436435,-352.01039924,0.00016473,2]
[350896147,1738181436450,-500.0,0.00016473,2]
[350896148,1738181436461,-3000.0,0.00016475,2]
[350896149,1738181436471,-395.0,0.00016507,2]
[350896150,1738181436481,-500.0,0.00016574,2]
[350896151,1738181436491,-500.0,0.00016574,2]
[350896152,1738181436501,-500.0,0.00016574,2]
[350896153,1738181436511,-500.0,0.00016574,2]
[350896154,1738181436520,-500.0,0.00016574,2]
[350896155,1738181436530,-500.0,0.00016574,2]
[350896156,1738181436539,-500.0,0.00016574,2]
[350896157,1738181436548,-500.0,0.00016574,2]
[350896158,1738181436558,-328.49623969,0.00016574,2]
[350896159,1738181436567,-358.38955953,0.00016575,2]
[350896160,1738181436577,-500.0,0.00016575,2]
[350896161,1738181436587,-500.0,0.00016575,2]
[350896162,1738181436597,-500.0,0.00016575,2]
[350896163,1738181436607,-500.0,0.00016575,2]
[350896164,1738181436616,-500.0,0.00016575,2]
[350896165,1738181436626,-500.0,0.00016575,2]
[350896166,1738181436635,-500.0,0.00016575,2]
[350896167,1738181436645,-500.0,0.00016575,2]
[350896168,1738181436654,-500.0,0.00016575,2]
[350896169,1738181436664,-500.0,0.00016575,2]
[350896170,1738181436674,-151.0,0.00016575,2]
[350896171,1738181436684,-500.0,0.00016575,2]
[350896172,1738181436703,-500.0,0.00016575,2]
[350896173,1738181436713,-706.38,0.00016575,2]
[350896174,1738181436724,-500.0,0.00016575,2]
[350896175,1738181436733,-502.7610483,0.00016575,2]
[350896176,1738181436743,-500.0,0.00016575,2]
[350896177,1738181436752,-500.0,0.00016575,2]
[350896178,1738181436762,-500.0,0.00016575,2]
[350896179,1738181436771,-500.0,0.00016575,2]
[350896180,1738181436781,-500.0,0.00016575,2]
[350896181,1738181436791,-500.0,0.00016575,2]
[350896182,1738181436800,-500.0,0.00016575,2]
[350896183,1738181436810,-500.0,0.00016575,2]
[350896184,1738181436819,-500.0,0.00016575,2]
[350896185,1738181436829,-500.0,0.00016575,2]
[350896186,1738181436838,-933.51,0.00016575,2]
[350896187,1738181436848,-500.0,0.00016575,2]
[350896188,1738181436972,-533.25,0.00016575,2]
[350896189,1738181436982,-500.0,0.00016575,2]
[350896190,1738181436992,-634.84185369,0.00016575,2]
[350896191,1738181437001,-500.0,0.00016575,2]
[350896192,1738181437011,-500.0,0.00016575,2]
[350896193,1738181437020,-500.0,0.00016575,2]
[350896194,1738181437029,-500.0,0.00016575,2]
[350896195,1738181437039,-500.0,0.00016575,2]
[350896196,1738181437049,-500.0,0.00016575,2]
[350896197,1738181437059,-500.0,0.00016575,2]
[350896198,1738181437068,-500.0,0.00016575,2]
[350896199,1738181437078,-730.85,0.00016575,2]
[350896200,1738181437088,-151.0,0.00016575,2]
[350896201,1738181437098,-500.0,0.00016575,2]
[350896202,1738181437108,-500.0,0.00016575,2]
[350896203,1738181437117,-500.0,0.00016575,2]
[350896204,1738181437127,-500.0,0.00016575,2]
[350896205,1738181437137,-130.70502123,0.00016575,2]
[350896241,1738181438235,-1397.0,0.00016438,2]
[350896243,1738181438248,-756.29074482,0.00016438,2]
[350896254,1738181438341,-685.35925518,0.00016438,2]
[350896256,1738181438351,-369.29497877,0.00016575,2]
[350896258,1738181438361,-655.49,0.00016575,2]
[350896260,1738181438371,-1136.38,0.00016575,2]
[350896262,1738181438381,-500.0,0.00016575,2]
[350896264,1738181438390,-583.71,0.00016575,2]
[350896266,1738181438400,-151.0,0.00016575,2]
[350896268,1738181438410,-500.0,0.00016575,2]
[350896270,1738181438420,-534.24,0.00016575,2]
[350896272,1738181438429,-151.0,0.00016575,2]
[350896274,1738181438438,-500.0,0.00016575,2]
[350896275,1738181438447,-697.17,0.00016575,2]
[350896277,1738181438458,-500.0,0.00016575,2]
[350896279,1738181438468,-151.0,0.00016575,2]
[350896281,1738181438478,-355.19959122,0.00016575,2]
[350896283,1738181438488,-77.34135269,0.00016575,2]
[350896286,1738181438505,-422.65864731,0.00016575,2]
[350896288,1738181438516,-563.77,0.00016575,2]
[350896290,1738181438526,-500.0,0.00016575,2]
[350896291,1738181438535,-1621.48,0.00016575,2]
[350896294,1738181438545,-500.0,0.00016575,2]
[350896295,1738181438554,-500.0,0.00016575,2]
[350896297,1738181438563,-500.0,0.00016575,2]
[350896299,1738181438573,-500.0,0.00016575,2]
[350896301,1738181438582,-1921.68,0.00016575,2]
[350896303,1738181438592,-541.56,0.00016575,2]
[350896305,1738181438601,-151.0,0.00016575,2]
[350896307,1738181438612,-500.0,0.00016575,2]
[350896309,1738181438621,-251.449428,0.00016575,2]
[350896311,1738181438631,-2154.33,0.00016575,2]
[350896313,1738181438641,-768.99,0.00016575,2]
[350896315,1738181438652,-1119.08,0.00016575,2]
[350896317,1738181438662,-151.0,0.00016575,2]
[350896319,1738181438672,-500.0,0.00016575,2]
[350896321,1738181438682,-1785.98,0.00016575,2]
[350896323,1738181438693,-833.91,0.00016575,2]
[350896325,1738181438704,-500.0,0.00016575,2]
[350896327,1738181438713,-500.0,0.00016575,2]
[350896329,1738181438724,-334.5921,0.00016575,2]
[350896331,1738181438734,-151.0,0.00016575,2]
[350896333,1738181438744,-334.5921,0.00016575,2]
[350896335,1738181438754,-151.0,0.00016575,2]
[350896337,1738181438764,-669.91,0.00016575,2]
[350896339,1738181438774,-500.0,0.00016575,2]
[350896341,1738181438784,-334.5921,0.00016575,2]
[350896342,1738181438793,-334.5921,0.00016575,2]
[350896344,1738181438803,-8298.98,0.00016575,2]
[350896346,1738181438813,-500.0,0.00016575,2]
[350896348,1738181438823,-500.0,0.00016575,2]
[350896350,1738181438832,-1714.77,0.00016575,2]
[350896352,1738181438842,-686.77,0.00016575,2]
[350896354,1738181438852,-752.81,0.00016575,2]
[350896356,1738181438862,-157.98660648,0.00016575,2]
[350896358,1738181438871,-151.0,0.00016575,2]
[350896360,1738181438881,-500.0,0.00016575,2]
[350896362,1738181438891,-728.61,0.00016575,2]
[350896364,1738181438901,-529.17,0.00016575,2]
[350896366,1738181438911,-1638.95,0.00016575,2]
[350896368,1738181438921,-21955.49129324,0.00016575,2]
[350896790,1738181443624,-500.0,0.00016438,2]
[350896791,1738181443634,-669.64,0.00016438,2]
[350896792,1738181443643,-4457.68819225,0.00016575,2]
[350896793,1738181443655,-1351.21051451,0.00016575,2]
[350896794,1738181443664,-2544.82,0.00016575,2]
[350896795,1738181443674,-1484.5,0.00016575,2]
[350896796,1738181443683,-500.0,0.00016575,2]
[350896797,1738181443693,-500.0,0.00016575,2]
[350896798,1738181443702,-151.0,0.00016575,2]
[350896799,1738181443711,-151.0,0.00016575,2]
[350896800,1738181443721,-151.0,0.00016575,2]
[350896801,1738181443731,-151.0,0.00016575,2]
[350896802,1738181443740,-500.0,0.00016575,2]
[350896803,1738181443750,-500.0,0.00016575,2]
[350896804,1738181443759,-813.51,0.00016575,2]
[350896806,1738181443769,-500.0,0.00016575,2]
[350896807,1738181443778,-945.36,0.00016575,2]
[350896809,1738181443788,-2361.45,0.00016575,2]
[350896811,1738181443797,-500.0,0.00016575,2]
[350896813,1738181443807,-2401.92,0.00016575,2]
[350896815,1738181443816,-993.98,0.00016575,2]
[350896817,1738181443825,-1187.36,0.00016575,2]
[350896819,1738181443835,-500.0,0.00016575,2]
[350896821,1738181443844,-1200.06,0.00016575,2]
[350896823,1738181443853,-1103.23,0.00016575,2]
[350896825,1738181443862,-500.0,0.00016575,2]
[350896827,1738181443872,-151.0,0.00016575,2]
[350896829,1738181443881,-151.0,0.00016575,2]
[350896831,1738181443891,-500.0,0.00016575,2]
[350896833,1738181443900,-500.0,0.00016575,2]
[350896835,1738181443910,-500.0,0.00016575,2]
[350896837,1738181443920,-500.0,0.00016575,2]
[350896839,1738181443930,-423.43951563,0.00016575,2]
[350896841,1738181443939,-500.0,0.00016575,2]
[350896843,1738181443948,-189.210961,0.00016575,2]
[350896845,1738181443958,-670.56,0.00016575,2]
[350896847,1738181443967,-500.0,0.00016575,2]
[350896849,1738181443977,-151.0,0.00016575,2]
[350896851,1738181443986,-151.0,0.00016575,2]
[350896853,1738181443996,-500.0,0.00016575,2]
[350896855,1738181444005,-500.0,0.00016575,2]
[350896857,1738181444014,-151.0,0.00016575,2]
[350896859,1738181444023,-43.43237368,0.00016575,2]
[350896860,1738181444035,-139.31375432,0.00016575,2]
[350896862,1738181444044,-472.02458154,0.00016575,2]
[350896864,1738181444055,-274.9032964,0.00016575,2]
[350896867,1738181444076,-419.39212206,0.00016575,2]
[350896869,1738181444086,-151.0,0.00016575,2]
[350896871,1738181444096,-151.0,0.00016575,2]
[350896873,1738181444106,-151.0,0.00016575,2]
[350896875,1738181444115,-151.0,0.00016575,2]
[350896877,1738181444124,-500.0,0.00016575,2]
[350896878,1738181444134,-500.0,0.00016575,2]
[350896880,1738181444144,-500.0,0.00016575,2]
[350896883,1738181444157,-500.0,0.00016575,2]
[350896885,1738181444167,-500.0,0.00016575,2]
[350896887,1738181444176,-500.0,0.00016575,2]
[350896889,1738181444186,-81.98521916,0.00016575,2]
[350897130,1738181446565,-633.52645931,0.00016575,2]
[350897132,1738181446577,-1500.0,0.00016575,2]
[350897137,1738181446619,-7868.14832153,0.00016575,2]
[350897139,1738181446629,-500.0,0.00016575,2]
[350897141,1738181446638,-9243.73,0.00016575,2]
[350897143,1738181446648,-500.0,0.00016575,2]
[350897145,1738181446658,-500.0,0.00016575,2]
[350897147,1738181446667,-1012.5,0.00016575,2]
[350897149,1738181446677,-5675.59,0.00016575,2]
[350897152,1738181446687,-2838.65,0.00016575,2]
[350897155,1738181446697,-151.0,0.00016575,2]
[350897157,1738181446707,-500.0,0.00016575,2]
[350897160,1738181446717,-669.64,0.00016575,2]
[350897163,1738181446727,-150.0,0.00016588,2]
[350897165,1738181446736,-150.0,0.00016588,2]
[350897168,1738181446747,-2043.0,0.00016588,2]
[350897170,1738181446756,-2003.21,0.00016588,2]
[350897173,1738181446766,-1751.03,0.000167,2]
[350897176,1738181446776,-73567.00283531,0.00016712,5]
[350897179,1738181446786,-21388.95652947,0.00016712,5]
[350897181,1738181446795,-500.0,0.00016712,2]
[350897183,1738181446805,-500.0,0.00016712,2]
[350897185,1738181446815,-500.0,0.00016712,2]
[350897187,1738181446823,-500.0,0.00016712,2]
[350897189,1738181446833,-500.0,0.00016712,2]
[350897191,1738181446842,-176.39158625,0.00016712,2]
[350897193,1738181446851,-500.0,0.00016712,2]
[350897195,1738181446861,-151.0,0.00016712,2]
[350897197,1738181446871,-267.32252002,0.00016712,2]
[350897199,1738181446881,-500.0,0.00016712,2]
[350897201,1738181446891,-500.0,0.00016712,2]
[350897203,1738181446901,-500.0,0.00016712,2]
[350897205,1738181446910,-500.0,0.00016712,2]
[350897207,1738181446918,-500.0,0.00016712,2]
[350897209,1738181446928,-500.0,0.00016712,2]
[350897211,1738181446937,-500.0,0.00016712,2]
[350897213,1738181446946,-458.52951438,0.00016712,2]
[350897215,1738181446956,-500.0,0.00016712,2]
[350897217,1738181446965,-500.0,0.00016712,2]
[350897219,1738181446987,-500.0,0.00016712,2]
[350897220,1738181446996,-500.0,0.00016712,2]
[350897222,1738181447005,-933.51,0.00016712,2]
[350897224,1738181447015,-482.88511878,0.00016712,2]
[350897225,1738181447025,-533.25,0.00016712,2]
[350897226,1738181447035,-500.0,0.00016712,2]
[350897227,1738181447045,-500.0,0.00016712,2]
[350897228,1738181447054,-500.0,0.00016712,2]
[350897229,1738181447067,-500.0,0.00016712,2]
[350897230,1738181447076,-500.0,0.00016712,2]
[350897231,1738181447085,-500.0,0.00016712,2]
[350897232,1738181447094,-500.0,0.00016712,2]
[350897233,1738181447104,-330.81512928,0.00016712,2]
[350897234,1738181447113,-500.0,0.00016712,2]
[350897235,1738181447122,-730.85,0.00016712,2]
[350897236,1738181447131,-151.0,0.00016712,2]
[350897237,1738181447141,-151.0,0.00016712,2]
[350897238,1738181447151,-500.0,0.00016712,2]
[350897239,1738181447161,-500.0,0.00016712,2]
[350897241,1738181447170,-500.0,0.00016712,2]
[350897243,1738181447179,-655.49,0.00016712,2]
[350897245,1738181447189,-1136.38,0.00016712,2]
[350897247,1738181447198,-500.0,0.00016712,2]
[350897249,1738181447207,-583.71,0.00016712,2]
[350897251,1738181447217,-500.0,0.00016712,2]
[350897253,1738181447227,-534.24,0.00016712,2]
[350897255,1738181447238,-500.0,0.00016712,2]
[350897257,1738181447248,-697.17,0.00016712,2]
[350897259,1738181447257,-500.0,0.00016712,2]
[350897261,1738181447267,-153.015441,0.00016712,2]
[350897263,1738181447278,-505.26049825,0.00016712,2]
[350897265,1738181447288,-563.77,0.00016712,2]
[350897267,1738181447297,-500.0,0.00016712,2]
[350897269,1738181447306,-1621.48,0.00016712,2]
[350897271,1738181447316,-500.0,0.00016712,2]
[350897273,1738181447325,-500.0,0.00016712,2]
[350897275,1738181447335,-500.0,0.00016712,2]
[350897277,1738181447344,-1921.68,0.00016712,2]
[350897279,1738181447353,-500.0,0.00016712,2]
[350897280,1738181447362,-2154.33,0.00016712,2]
[350897283,1738181447372,-768.99,0.00016712,2]
[350897284,1738181447382,-1119.08,0.00016712,2]
[350897286,1738181447391,-500.0,0.00016712,2]
[350897288,1738181447401,-1785.98,0.00016712,2]
[350897290,1738181447410,-833.91,0.00016712,2]
[350897292,1738181447420,-500.0,0.00016712,2]
[350897294,1738181447429,-334.5921,0.00016712,2]
[350897296,1738181447439,-334.5921,0.00016712,2]
[350897299,1738181447449,-164.849016,0.00016712,2]
[350897300,1738181447458,-669.91,0.00016712,2]
[350897302,1738181447468,-500.0,0.00016712,2]
[350897304,1738181447477,-334.5921,0.00016712,2]
[350897306,1738181447486,-334.5921,0.00016712,2]
[350897308,1738181447496,-8298.98,0.00016712,2]
[350897310,1738181447505,-500.0,0.00016712,2]
[350897312,1738181447515,-1714.77,0.00016712,2]
[350897314,1738181447524,-686.77,0.00016712,2]
[350897316,1738181447533,-752.81,0.00016712,2]
[350897318,1738181447543,-151.0,0.00016712,2]
[350897320,1738181447553,-151.0,0.00016712,2]
[350897322,1738181447563,-500.0,0.00016712,2]
[350897324,1738181447573,-728.61,0.00016712,2]
[350897326,1738181447583,-529.17,0.00016712,2]
[350897328,1738181447593,-1638.95,0.00016712,2]
[350897330,1738181447603,-27764.39,0.00016712,2]
[350897332,1738181447613,-2544.82,0.00016712,2]
[350897334,1738181447622,-1484.5,0.00016712,2]
[350897336,1738181447631,-500.0,0.00016712,2]
[350897338,1738181447641,-500.0,0.00016712,2]
[350897340,1738181447650,-151.0,0.00016712,2]
[350897342,1738181447660,-151.0,0.00016712,2]
[350897343,1738181447669,-151.0,0.00016712,2]
[350897345,1738181447678,-151.0,0.00016712,2]
[350897347,1738181447688,-500.0,0.00016712,2]
[350897349,1738181447698,-500.0,0.00016712,2]
[350897351,1738181447707,-813.51,0.00016712,2]
[350897353,1738181447717,-500.0,0.00016712,2]
[350897355,1738181447726,-945.36,0.00016712,2]
[350897357,1738181447736,-2361.45,0.00016712,2]
[350897359,1738181447746,-2401.92,0.00016712,2]
[350897361,1738181447755,-993.98,0.00016712,2]
[350897363,1738181447764,-1187.36,0.00016712,2]
[350897365,1738181447773,-500.0,0.00016712,2]
[350897378,1738181447890,-1200.06,0.00016712,2]
[350897380,1738181447899,-1103.23,0.00016712,2]
[350897382,1738181447909,-151.0,0.00016712,2]
[350897384,1738181447918,-500.0,0.00016712,2]
[350897386,1738181447927,-500.0,0.00016712,2]
[350897388,1738181447937,-500.0,0.00016712,2]
[350897390,1738181447947,-500.0,0.00016712,2]
[350897392,1738181447957,-670.56,0.00016712,2]
[350897394,1738181447966,-500.0,0.00016712,2]
[350897396,1738181447975,-151.0,0.00016712,2]
[350897398,1738181447997,-267.204688,0.00016712,2]
[350897400,1738181448007,-500.0,0.00016712,2]
[350897402,1738181448016,-1166.32,0.00016712,2]
[350897404,1738181448025,-151.0,0.00016712,2]
[350897406,1738181448037,-500.0,0.00016712,2]
[350897408,1738181448046,-500.0,0.00016712,2]
[350897410,1738181448056,-500.0,0.00016712,2]
[350897412,1738181448066,-500.0,0.00016712,2]
[350897414,1738181448076,-500.0,0.00016712,2]
[350897416,1738181448086,-612.83496406,0.00016712,2]
[350897418,1738181448096,-10083.66,0.00016712,2]
[350897419,1738181448106,-500.0,0.00016712,2]
[350897421,1738181448115,-9243.73,0.00016712,2]
[350897423,1738181448124,-500.0,0.00016712,2]
[350897425,1738181448134,-500.0,0.00016712,2]
[350897427,1738181448143,-1012.5,0.00016712,2]
[350897429,1738181448154,-5675.59,0.00016712,2]
[350897431,1738181448163,-2838.65,0.00016712,2]
[350897433,1738181448173,-500.0,0.00016712,2]
[350897435,1738181448183,-669.64,0.00016712,2]
[350897437,1738181448194,-1200.0,0.00016728,2]
[350897439,1738181448204,-151.0,0.00016728,2]
[350897441,1738181448214,-151.839952,0.00016741,2]
[350897443,1738181448224,-152.0,0.00016819,2]
[350897445,1738181448234,-237.61977788,0.00016848,2]
[350897447,1738181448244,-500.0,0.00016849,2]
[350897449,1738181448253,-263.64453303,0.00016849,2]
[350897450,1738181448263,-500.0,0.00016849,2]
[350897452,1738181448273,-500.0,0.00016849,2]
[350897454,1738181448282,-500.0,0.00016849,2]
[350897456,1738181448292,-173.45949388,0.00016849,2]
[350897458,1738181448301,-500.0,0.00016849,2]
[350897460,1738181448311,-500.0,0.00016849,2]
[350897462,1738181448320,-500.0,0.00016849,2]
[350897464,1738181448330,-500.0,0.00016849,2]
[350897466,1738181448341,-500.0,0.00016849,2]
[350897468,1738181448353,-500.0,0.00016849,2]
[350897470,1738181448362,-151.0,0.00016849,2]
[350897472,1738181448372,-500.0,0.00016849,2]
[350897474,1738181448387,-500.0,0.00016849,2]
[350897476,1738181448396,-500.0,0.00016849,2]
[350897478,1738181448406,-500.0,0.00016849,2]
[350897480,1738181448416,-500.0,0.00016849,2]
[350897482,1738181448426,-500.0,0.00016849,2]
[350897484,1738181448436,-500.0,0.00016849,2]
[350897486,1738181448446,-500.0,0.00016849,2]
[350897488,1738181448455,-500.0,0.00016849,2]
[350897490,1738181448465,-500.0,0.00016849,2]
[350897492,1738181448474,-933.51,0.00016849,2]
[350897494,1738181448495,-533.25,0.00016849,2]
[350897496,1738181448505,-500.0,0.00016849,2]
[350897497,1738181448515,-500.0,0.00016849,2]
[350897499,1738181448526,-500.0,0.00016849,2]
[350897501,1738181448541,-500.0,0.00016849,2]
[350897503,1738181448550,-500.0,0.00016849,2]
[350897505,1738181448560,-500.0,0.00016849,2]
[350897507,1738181448570,-500.0,0.00016849,2]
[350897509,1738181448579,-730.85,0.00016849,2]
[350897511,1738181448589,-500.0,0.00016849,2]
[350897513,1738181448600,-500.0,0.00016849,2]
[350897515,1738181448610,-500.0,0.00016849,2]
[350897517,1738181448619,-655.49,0.00016849,2]
[350897519,1738181448629,-1136.38,0.00016849,2]
[350897521,1738181448639,-500.0,0.00016849,2]
[350897523,1738181448649,-583.71,0.00016849,2]
[350897525,1738181448658,-500.0,0.00016849,2]
[350897527,1738181448668,-534.24,0.00016849,2]
[350897529,1738181448677,-500.0,0.00016849,2]
[350897531,1738181448686,-697.17,0.00016849,2]
[350897533,1738181448695,-500.0,0.00016849,2]
[350897535,1738181448704,-563.77,0.00016849,2]
[350897537,1738181448714,-216.37,0.00016849,2]
[350897538,1738181448723,-1621.48,0.00016849,2]
[350897540,1738181448732,-500.0,0.00016849,2]
[350897542,1738181448741,-500.0,0.00016849,2]
[350897544,1738181448750,-500.0,0.00016849,2]
[350897546,1738181448759,-1921.68,0.00016849,2]
[350897548,1738181448768,-500.0,0.00016849,2]
[350897550,1738181448778,-2154.33,0.00016849,2]
[350897552,1738181448787,-768.99,0.00016849,2]
[350897554,1738181448797,-1119.08,0.00016849,2]
[350897556,1738181448806,-500.0,0.00016849,2]
[350897558,1738181448816,-1785.98,0.00016849,2]
[350897560,1738181448825,-833.91,0.00016849,2]
[350897562,1738181448834,-500.0,0.00016849,2]
[350897564,1738181448844,-334.5921,0.00016849,2]
[350897566,1738181448853,-669.91,0.00016849,2]
[350897568,1738181448862,-334.5921,0.00016849,2]
[350897570,1738181448871,-500.0,0.00016849,2]
[350897572,1738181448881,-334.5921,0.00016849,2]
[350897574,1738181448890,-334.5921,0.00016849,2]
[350897576,1738181448899,-8298.98,0.00016849,2]
[350897578,1738181448909,-500.0,0.00016849,2]
[350897579,1738181448918,-1714.77,0.00016849,2]
[350897582,1738181448928,-686.77,0.00016849,2]
[350897583,1738181448938,-752.81,0.00016849,2]
[350897585,1738181448948,-151.0,0.00016849,2]
[350897587,1738181448958,-151.0,0.00016849,2]
[350897589,1738181448967,-728.61,0.00016849,2]
[350897591,1738181448977,-529.17,0.00016849,2]
[350897593,1738181448986,-1638.95,0.00016849,2]
[350897595,1738181448996,-27764.39,0.00016849,2]
[350897597,1738181449015,-2544.82,0.00016849,2]
[350897599,1738181449024,-1484.5,0.00016849,2]
[350897601,1738181449033,-500.0,0.00016849,2]
[350897602,1738181449045,-500.0,0.00016849,2]
[350897604,1738181449055,-151.0,0.00016849,2]
[350897606,1738181449066,-151.0,0.00016849,2]
[350897608,1738181449077,-500.0,0.00016849,2]
[350897610,1738181449087,-500.0,0.00016849,2]
[350897612,1738181449096,-813.51,0.00016849,2]
[350897614,1738181449106,-500.0,0.00016849,2]
[350897616,1738181449115,-945.36,0.00016849,2]
[350897618,1738181449125,-2361.45,0.00016849,2]
[350897620,1738181449135,-2401.92,0.00016849,2]
[350897622,1738181449144,-993.98,0.00016849,2]
[350897624,1738181449154,-1187.36,0.00016849,2]
[350897625,1738181449163,-500.0,0.00016849,2]
[350897627,1738181449172,-1200.06,0.00016849,2]
[350897629,1738181449182,-1103.23,0.00016849,2]
[350897631,1738181449191,-500.0,0.00016849,2]
[350897633,1738181449201,-500.0,0.00016849,2]
[350897635,1738181449211,-500.0,0.00016849,2]
[350897637,1738181449220,-500.0,0.00016849,2]
[350897639,1738181449229,-670.56,0.00016849,2]
[350897641,1738181449238,-500.0,0.00016849,2]
[350897643,1738181449249,-500.0,0.00016849,2]
[350897644,1738181449267,-1166.32,0.00016849,2]
[350897646,1738181449277,-500.0,0.00016849,2]
[350897648,1738181449287,-500.0,0.00016849,2]
[350897650,1738181449297,-500.0,0.00016849,2]
[350897652,1738181449306,-500.0,0.00016849,2]
[350897654,1738181449315,-500.0,0.00016849,2]
[350897656,1738181449324,-10083.66,0.00016849,2]
[350897658,1738181449335,-500.0,0.00016849,2]